Cogmind - Beta 15 @@@ ROGUE MODE // 2025.07.22 @ 20:06:09 Player: shapeshifter Result: Self-destructed Performance ------------- Evolutions (0) 0 Regions Visited (4) 800 Robots Destroyed (5) 25 Value Destroyed (74) 74 Prototype IDs (0) 0 Alien Tech Used (0) 0 Bonus (-23) -23 TOTAL SCORE: 876 Bonus ------- Friendly Fire -23 Cogmind --------- Core Integrity 171/250 Matter 290/300 Energy 250/250 System Corruption 0% Temperature Cool (0) Movement Treading (160) Location -9/Mines Parts ------- > --- POWER (1) -------- Ion Engine > --- PROPULSION (2) --- Light Treads Light Treads > --- UTILITY (2) ------ Large Storage Unit Seismic Detector > --- WEAPON (2) ------- Particle Gun Beam Cannon > --- INVENTORY (15) --- Ion Engine Light Nuclear Core Aluminum Leg Aluminum Leg Small Storage Unit Small Matter Pod (50) Sensor Drone Bay Beam Rifle Beam Rifle Particle Gun Assault Rifle Grenade Launcher Peak State ------------ > --- POWER ------------ Ion Engine > --- PROPULSION ------- Light Treads Compact Wheel > --- UTILITY ---------- Large Storage Unit Seismic Detector > --- WEAPON ----------- Particle Gun Beam Cannon > --- INVENTORY -------- Ion Engine Light Nuclear Core Light Treads Aluminum Leg Aluminum Leg Wheel Small Storage Unit Small Matter Pod EM Pulse Gun Beam Rifle Beam Rifle Particle Gun Assault Rifle Light Assault Rifle Grenade Launcher [Rating: 10] Favorites ----------- Power Ion Engine Engine Ion Engine Propulsion Light Treads Treads Light Treads Wheel Compact Wheel Utility Seismic Detector Device Seismic Detector Storage Large Storage Unit Weapon EM Pulse Gun Energy Gun EM Pulse Gun Energy Cannon Beam Cannon Ballistic Gun Assault Rifle Build | -11 -10 -10 -10 -9 ------- Run | Yrd Mat Min Exi Min Slots Evolved . | . . . . . Power . | . . . . . Propulsion . | . . . . . Utility . | . . . . . Weapon . | . . . . . Parts Attached 12 | 7 4 1 . . Power 1 | 1 . . . . Engine 1 | 1 . . . . Core . | . . . . . Reactor . | . . . . . Propulsion 4 | 2 1 1 . . Treads 2 | 2 . . . . Leg . | . . . . . Wheel 2 | . 1 1 . . Hover . | . . . . . Flight . | . . . . . Utility 3 | 2 1 . . . Device 1 | 1 . . . . Storage 2 | 1 1 . . . Processor . | . . . . . Hackware . | . . . . . Protection . | . . . . . Artifact . | . . . . . Weapon 4 | 2 2 . . . Energy Gun 2 | 1 1 . . . Energy Cannon 1 | . 1 . . . Ballistic Gun 1 | 1 . . . . Ballistic Cannon . | . . . . . Launcher . | . . . . . Special Weapon . | . . . . . Impact Weapon . | . . . . . Slashing Weapon . | . . . . . Piercing Weapon . | . . . . . Special Melee Weapon . | . . . . . Unidentified Prototypes . | . . . . . Parts Lost 2 | . . 2 . . Power . | . . . . . Propulsion 2 | . . 2 . . Utility . | . . . . . Weapon . | . . . . . Highest Loss Streak 2 | . . 2 . . To Critical Strikes . | . . . . . Average Backups 11 | 5 13 13 12 . Power 1 | . 1 2 2 . Propulsion 3 | 3 4 3 2 . Utility 1 | . 1 2 3 . Weapon 4 | 1 5 5 5 . Tool/Special . | . . . . . Unused Backups 11 | . 1 . . 10 Power 2 | . . . . 2 Propulsion 2 | . . . . 2 Utility 2 | . . . . 2 Weapon 5 | . 1 . . 4 Tool/Special . | . . . . . Average Slot Usage (%) 99 | . 100 99 100 . Engine 14 | . 14 14 14 . Treads 20 | . 20 17 28 . Wheel 7 | . 7 10 . . Device 14 | . 14 14 14 . Storage 14 | . 14 14 14 . Energy Gun 14 | . 14 14 14 . Energy Cannon 7 | . 2 14 14 . Ballistic Gun 6 | . 11 . . . Peak Build Rating 10 | 7 10 10 10 . Average Rating 7 | 5 8 9 10 . On Entrance 7 | . 7 9 10 10 Naked Turns . | . . . . . Heaviest Build 32 | 15 32 32 32 . Greatest Support 40 | 40 40 40 40 . Greatest Overweight (x) 10 | . 1 10 . . Average Overweight (x) . | . . . . . Largest Inventory Capacity 15 | 8 15 15 15 . Average Capacity 12 | 7 14 15 15 . Most Carried 15 | 8 15 14 12 . Average Carried 11 | 5 13 13 12 . Final Capacity 15 | 8 15 15 15 15 Final Carried 13 | 6 13 12 12 12 Class Distribution -------------------- 100% | Mutant Dominant Class ---------------- Mutant | -10/Materials Mutant | -10/Mines Mutant | -10/Exiles Mutant | -9/Mines Resources | -11 -10 -10 -10 -9 ----------- Run | Yrd Mat Min Exi Min Matter Collected 427 | 303 117 7 . . Remotely . | . . . . . Salvage Created 182 | 134 48 . . . Parts 18 | 12 6 . . . Haulers Intercepted . | . . . . . Recyclers Shooed 1 | 1 . . . . Parts Field Recycled . | . . . . . Retrieved Matter . | . . . . . Parts Self-Destructed . | . . . . . Prevented . | . . . . . Kills | -11 -10 -10 -10 -9 ------- Run | Yrd Mat Min Exi Min Combat Hostiles Destroyed 2 | . 2 . . . Guns 1 | . 1 . . . Cannons 1 | . 1 . . . Classes Destroyed 4 | 2 2 . . . Tunneler 2 | 2 . . . . Recycler 1 | 1 . . . . Swarmer 1 | . 1 . . . Grunt 1 | . 1 . . . Best Kill Streak 1 | 1 1 . . . Combat Bots Only 1 | . 1 . . . Max Kills in Single Turn 1 | 1 1 . . . Gunslinging . | . . . . . Exploded . | . . . . . Melee . | . . . . . Uniques/NPCs Destroyed . | . . . . . Combat | -11 -10 -10 -10 -9 -------- Run | Yrd Mat Min Exi Min Hostile Shots Fired 12 | . 1 11 . . Missed 2 | . 1 1 . . Hits 10 | . . 10 . . Projectile 10 | . . 10 . . AOE 5 | . . 5 . . Critical Strikes 2 | . . 2 . . Damage Taken 315 | 30 . 285 . . Core 79 | . . 79 . . Absorbed by Shields . | . . . . . Core Remaining (%) 100 | 100 . . . . Volleys Fired 26 | 11 12 3 . . Largest 2 | 2 2 2 . . Hottest 125 | 60 125 125 . . Shots Fired 52 | 22 24 6 . . Gun 46 | 22 21 3 . . Cannon 6 | . 3 3 . . Launcher . | . . . . . Special . | . . . . . Kinetic 20 | 11 9 . . . Thermal 12 | . 6 6 . . Explosive . | . . . . . Electromagnetic 20 | 11 9 . . . Robot Hit Streak 5 | 5 2 1 . . Robot Miss Streak 4 | 2 4 2 . . Penetration Max . | . . . . . Secondary Targets . | . . . . . Shots Hit Robots 25 | 14 9 2 . . Core Hits 7 | 4 3 . . . Critical Kills . | . . . . . Critical Parts Destroyed . | . . . . . Critical Strikes . | . . . . . Melee Attacks . | . . . . . Impact . | . . . . . Slashing . | . . . . . Piercing . | . . . . . Sneak Attacks . | . . . . . Combat Hostiles . | . . . . . Follow-up Attacks . | . . . . . Damage Inflicted 379 | 190 153 36 . . Guns 281 | 164 117 . . . Cannons 72 | . 36 36 . . Explosions 26 | 26 . . . . Melee . | . . . . . Ramming . | . . . . . Kinetic 101 | 47 54 . . . Thermal 130 | 26 68 36 . . Explosive . | . . . . . Electromagnetic 148 | 117 31 . . . Impact . | . . . . . Slashing . | . . . . . Piercing . | . . . . . Highest Corruption . | . . . . . Average Corruption . | . . . . . Corruption Purged . | . . . . . Corruption Blocked . | . . . . . Overload Shots . | . . . . . Overflow Damage . | . . . . . Projectiles . | . . . . . Explosions . | . . . . . Melee . | . . . . . Knockbacks . | . . . . . Impact . | . . . . . Kinetic . | . . . . . Secondary . | . . . . . Self-Inflicted Damage 30 | 30 . . . . Shots 1 | 1 . . . . Rammed . | . . . . . Targets Rammed . | . . . . . Kicked . | . . . . . Crushed . | . . . . . Highest Temperature 189 | 12 126 189 . . Average Temperature 71 | 12 56 97 . . Received Heat Transfer . | . . . . . Siege Activations . | . . . . . Martial Activations . | . . . . . Shielding Activations . | . . . . . Robots Disrupted . | . . . . . Combat Hostiles . | . . . . . Robots Corrupted . | . . . . . Combat Hostiles . | . . . . . Parts Fried . | . . . . . Impact Corruptions . | . . . . . Robots Melted . | . . . . . Combat Hostiles . | . . . . . Parts Melted . | . . . . . Heat Transferred 222 | . 148 74 . . Parts Sabotaged . | . . . . . Parts Stolen . | . . . . . Parts Stripped . | . . . . . Power Chain Reactions 1 | 1 . . . . Alert | -11 -10 -10 -10 -9 ------- Run | Yrd Mat Min Exi Min Maximum Alert Level . | . . . . . Low Security (%) 100 | 100 100 100 . . Level 1 . | . . . . . Level 2 . | . . . . . Level 3 . | . . . . . Level 4 . | . . . . . Level 5 . | . . . . . High Security . | . . . . . Max Security . | . . . . . Peak Influence 30 | 5 30 1 . . Initial 1 | . . 1 . . Average 3 | . 6 . . . Influence Increases 85 | 15 70 . . . Destroy 0b10 Robot/C 40 | . 40 . . . Destroy 0b10 Robot/NC 15 | 15 . . . . Destroy Leader 10 | . 10 . . . Successful Hack 5 | . 5 . . . Disable Machine 15 | . 15 . . . Influence Decreases 85 | 15 65 5 . . Entered New Map 4 | . . 4 . . Time Decay 81 | 15 65 1 . . Squads Dispatched 3 | . 3 . . . Investigation 2 | . 2 . . . Extermination . | . . . . . Reinforcement 1 | . 1 . . . Assault . | . . . . . Garrison . | . . . . . Intercept . | . . . . . Searches Triggered . | . . . . . Construction Impeded . | . . . . . Haulers Reinforced . | . . . . . Active Scanning Responses . | . . . . . Cargo Convoy Interrupts . | . . . . . Stealth | -11 -10 -10 -10 -9 --------- Run | Yrd Mat Min Exi Min Distress Signals 1 | . 1 . . . Communications Jammed . | . . . . . Distress Signals . | . . . . . Times Spotted 16 | . 11 5 . . Peak Tracking Total 4 | . 4 3 . . Tactical Retreats . | . . . . . Traps | -11 -10 -10 -10 -9 ------- Run | Yrd Mat Min Exi Min Traps Triggered . | . . . . . Indirectly . | . . . . . Trap Hack Attempts . | . . . . . Triggered . | . . . . . Disarmed . | . . . . . Reprogrammed . | . . . . . Reused . | . . . . . Traps Extracted . | . . . . . Installed . | . . . . . Triggered . | . . . . . Machines | -11 -10 -10 -10 -9 ---------- Run | Yrd Mat Min Exi Min Machines Disabled 1 | . 1 . . . Max in Single Turn 1 | . 1 . . . Machines Repaired . | . . . . . Machines Dismantled . | . . . . . Machines Sabotaged . | . . . . . Overloaded Fab Kills . | . . . . . Hacking | -11 -10 -10 -10 -9 --------- Run | Yrd Mat Min Exi Min Machines Accessed 2 | . 1 1 . . Terminals 1 | . 1 . . . Fabricators . | . . . . . Repair Stations . | . . . . . Recycling Units . | . . . . . Scanalyzers . | . . . . . Garrison Access . | . . . . . Total Hacks 4 | . 3 1 . . Successful 3 | . 2 1 . . Failed 1 | . 1 . . . Catastrophic . | . . . . . Database Lockouts . | . . . . . Manual 1 | . 1 . . . Terminals 3 | . 3 . . . Fabricators . | . . . . . Repair Stations . | . . . . . Recycling Units . | . . . . . Scanalyzers . | . . . . . Garrison Access . | . . . . . Terminal Hacks 2 | . 1 1 . . Open Door 1 | . . 1 . . Registered Components 1 | . 1 . . . Fabricator Hacks . | . . . . . Repair Station Hacks . | . . . . . Recycling Unit Hacks . | . . . . . Scanalyzer . | . . . . . Garrison Access Hacks . | . . . . . Unauthorized Hacks 1 | . 1 . . . Terminals 1 | . 1 . . . Botnet 1 | . 1 . . . Fabricators . | . . . . . Repair Stations . | . . . . . Recycling Units . | . . . . . Scanalyzers . | . . . . . Garrison Access . | . . . . . Data Cores Recovered . | . . . . . Used . | . . . . . Hacking Detections 1 | . 1 . . . Full Trace Events 1 | . 1 . . . Feedback Events . | . . . . . Feedback Blocked . | . . . . . Robot Schematics Acquired . | . . . . . Robots Built . | . . . . . Authchips . | . . . . . Time . | . . . . . Total Robot Build Rating . | . . . . . Part Schematics Acquired . | . . . . . Parts Built . | . . . . . Authchips . | . . . . . Time . | . . . . . Total Part Build Rating . | . . . . . Parts Repaired . | . . . . . Time . | . . . . . Parts Recycled . | . . . . . Recycled Matter . | . . . . . Retrieved Matter . | . . . . . Retrieved Components . | . . . . . Parts Scanalyzed . | . . . . . Part Schematics Acquired . | . . . . . Parts Damaged . | . . . . . Bothacking | -11 -10 -10 -10 -9 ------------ Run | Yrd Mat Min Exi Min Used RIF Installer . | . . . . . Robots Hacked . | . . . . . Non-combat . | . . . . . Combat . | . . . . . Robot Hacks Applied . | . . . . . Relay Couplers Released . | . . . . . Fabnet Peak Effective % . | . . . . . Robots Rewired . | . . . . . Allies Hacked . | . . . . . Hacks Repelled . | . . . . . Allies | -11 -10 -10 -10 -9 -------- Run | Yrd Mat Min Exi Min Total Allies . | . . . . . Largest Group . | . . . . . Highest-Rated Group . | . . . . . Highest-Rated Ally . | . . . . . Total Orders . | . . . . . Ally Attacks . | . . . . . Total Damage . | . . . . . Kills . | . . . . . Allies Corrupted . | . . . . . Allies Melted . | . . . . . Intel | -11 -10 -10 -10 -9 ------- Run | Yrd Mat Min Exi Min Active Infowar (turns) 574 | 24 324 170 56 . Seismic 574 | 24 324 170 56 . Robot Analysis Total . | . . . . . Derelict Logs Recovered 1 | . . 1 . . Drone Launches . | . . . . . Drone Recoveries . | . . . . . Exploration | -11 -10 -10 -10 -9 ------------- Run | Yrd Mat Min Exi Min Turns Passed 740 | 190 324 170 56 . Spaces Moved 437 | 90 193 118 36 . Core 8 | 7 . 1 . . Treads 231 | 83 84 28 36 . Legs . | . . . . . Wheels 198 | . 109 89 . . Hover . | . . . . . Flight . | . . . . . Fastest Speed 50 | 50 115 115 160 . Average Speed 138 | 151 134 129 160 . Slowest Speed 550 | 160 160 550 160 . Overloaded Moves . | . . . . . Propulsion Burnouts . | . . . . . Robots Hopped . | . . . . . Potential Cave-ins . | . . . . . Cave-ins Triggered . | . . . . . Exploration Rate (%) 19 | 7 34 39 9 7 Regions Visited 4 Branch Regions 3 Pre-discovered Areas . | . . . . . Known Exits Taken . | . . . . . Unknown Exits Taken 4 | 1 1 1 1 . Scrap Searched 2 | . . 2 . . Spaces Dug . | . . . . . Terrain Destroyed 7 | 7 . . . . Melee . | . . . . . Projectile . | . . . . . AOE 7 | 7 . . . . Terrain Rammed . | . . . . . Walls Destroyed . | . . . . . Machines Disabled . | . . . . . Actions | -11 -10 -10 -10 -9 --------- Run | Yrd Mat Min Exi Min Total 517 | 121 232 129 35 . Wait 21 | 2 13 6 . . Move 433 | 89 192 117 35 . Hop . | . . . . . Pick Up 22 | 12 9 1 . . Fast Attach 1 | 1 . . . . Attach 8 | 6 . 2 . . Detach . | . . . . . Swap 4 | . 4 . . . Drop 2 | . 2 . . . Fire 26 | 11 12 3 . . Melee . | . . . . . Ram . | . . . . . Kick . | . . . . . Crush . | . . . . . Escape Stasis . | . . . . . Rewire . | . . . . . Trap . | . . . . . Miscellaneous . | . . . . . Route ------- -11/Scrapyard -10/Materials -10/Mines -10/Exiles -9/Mines History --------- Turn | Location | Event 2 | -11/Scrapyard | Discovered new exit (range 16) 191 | -11/Scrapyard | Entered Materials 263 | -10/Materials | Met 8R-AWN 301 | -10/Materials | Build established: Mutant 499 | -10/Materials | Discovered new exit (range 13) 515 | -10/Materials | Entered Mines 518 | -10/Mines | Followed 8R-AWN into the Mines 546 | -10/Mines | Found the Drone Emporium 552 | -10/Mines | Found Prototype Device 582 | -10/Mines | Learned 2 Materials zone layouts 585 | -10/Mines | Assembled infested the area 590 | -10/Mines | Assisted by a Guerilla fighting off Assembled 677 | -10/Mines | Discovered new exit (range 5) 685 | -10/Mines | Entered Exiles 721 | -10/Exiles | Discovered new exit (range 15) 741 | -10/Exiles | Entered Mines 741 | -9/Mines | Self-destructed Last Messages --------------- 00635_ HV Slug penetrates Wall. 00637_ The unstable cave ceiling collapses. 00640_ HV Slug penetrates D-53 Grenadier. 00640_ D-53 Grenadier suffers critical hit (Destroy). 00640_ HV Slug penetrates Wall. 00640_ HV Slug penetrates D-53 Grenadier. 00640_ D-53 Grenadier suffers critical hit (Destroy). 00640_ D-53 Grenadier destroyed. 00640_ HV Slug penetrates Wall. 00640_ K-01 Serf collects debris. 00641_ The unstable cave ceiling collapses. 00668_ K-01 Serf collects debris. 00677_ EXIT=FOUND LOCATION=UNKNOWN GOAL=ESCAPE 00721_ EXIT=FOUND LOCATION=UNKNOWN GOAL=ESCAPE Map ----- +----------------------------------------------------+ | ??????????????????????????????????? | | ??????????????????????????????????? | | ??????????????????????????????????? | | ??????????????????????????????????? | | ??????????????????????????????????? | | ??????????????????????????????????? | | ??????????????????????????????????? | | ??????????????????????????????????? | | ??????????????????????????????????? | | ??????????????????????????????????? | | ??????????????????????????????????? | | ??????????????????????????????????? | | ??????????????????????????????????? | | ??????????????????????????????????? | | ??????????????????????????????????? | | ??????????????????????????????????? | | ??????????????????????????????????? | | ??????????????????????????????????? | | ??????????????????????????????????? | | ?#############????????????????????? | | ?# #????????????????????? | | ?? ###??????????????????? | | ?? """ ???????????????????? | | ?? """ #????????????????????? | | ?# """ #????????????????????? | | ?# @ #????????????????????? | | ?# """ #????????????????????? | | ?? """ #????????????????????? | | ?? """ #????????????????????? | | ?? #????????????????????? | | ?# """ """ #????????????????????? | | ?# """ """ #????????????????????? | | ?? """ """ #????????????????????? | | ??? #????????????????????? | | ??? ??? ss #????????????????????? | | ??? ???? ss#????????????????????? | | ?????????#####????????????????????? | | ??????????????????????????????????? | | ??????????????????????????????????? | | ??????????????????????????????????? | | ??????????????????????????????????? | | ??????????????????????????????????? | | ??????????????????????????????????? | | ??????????????????????????????????? | | ??????????????????????????????????? | | ??????????????????????????????????? | | ??????????????????????????????????? | | | | | | | +----------------------------------------------------+ Best States ------------- Heat Dissipation 25 Energy Generation 10 Energy Capacity 250 Matter Stores 300 Matter Capacity 300 Sight Range 16 Terrain Scan Density 10 Evasion (%) 50 Recoil Reduction 2 Item Schematics ----------------- None Robot Schematics ------------------ None Fabricated ------------ Nothing Repaired ---------- Nothing Alien Tech Used ----------------- None Achievements -------------- None Challenges ------------ None Game ------ Seed FieldStormShovel Manual? 0 Play Time 00:07:38 Cumulative 33.8 hours Start 2025.07.22 @ 19:57:25 End 2025.07.22 @ 20:06:09 Sessions 3 Manual Loads 0 Difficulty Rogue Special Mode None Game No. 86 Rogue 86 Adventurer 0 Explorer 0 Win Type - Total 0 Types 0/0/0/0/0/0/0/0/0/0 Lore% 32 Gallery% 32 Achievement% 25 Wizard Run 0 Options --------- Layout 1 ASCII 0 Keyboard 0 Movement Mouse Keybinds 0 Fullscreen 1 Font 24/Smallcaps Map View 50x35 Zoom Use 0% Tactical HUD 1 Map Filters NONE Filters NONE Steam 1 RUN: db943dc2-ac95-4083-bdfb-146189602dd4